{"text_format":"3","workbook":"xlsx","n_sheets":26,"sheets":["Začátek","1","2","3","4","5","6","7","8","9","10","11","12","13","14","15","16","17","18","19","20","21","22","23","24","Další informace"],"not_rendered":{"images":24,"defined_names":5,"pivot_tables":19},"read":"whole","date_system":"1900"}

{"sheet":"Začátek","index":0,"n_rows":5,"n_cols":1,"rows_kept":5}
["Uvítání\nPokyny pro čtečky obrazovky: Naučte se ještě lépe využít kontingenční tabulky. Jednoduchá kontingenční tabulka vám poskytne celkové shrnutí vašich dat. Někdy ale můžete potřebovat podrobné odpovědi na konkrétní otázky. S tím vám může pomoct přidání dalších řádkových a sloupcových polí. \nPokyny budou dále navádět, ke kterým buňkám přejít, abyste mohli použít funkci, nebo k dalšímu čtení.\nPokud chcete začít, stiskněte CTRL+PAGE DOWN."]
["Naučte se ještě lépe využít \nkontingenční tabulky"]
["Jednoduchá kontingenční tabulka vám poskytne celkové shrnutí vašich dat.\nNěkdy ale můžete potřebovat podrobné odpovědi na konkrétní otázky.\nS tím vám může pomoct přidání dalších řádkových a sloupcových polí."]
["JE DOBRÉ VĚDĚT\nAbsolvovali jste první kurz? Pokud ne, přejděte na Soubor > Nový a najděte šablonu Vytvořte svou první kontingenční tabulku."]
["Na začátek přejdete stisknutím CTRL+HOME. Pokud chcete začít s prohlídkou, stiskněte CTRL+PAGE DOWN."]

{"sheet":"1","index":1,"n_rows":16,"n_cols":9,"rows_kept":16}
["V prvním kurzu jsme vás seznámili s konceptem kontingenční tabulky. Také jsme vám vysvětlili, jak můžete použít řádkové pole jako podmínku, která rozdělí pole hodnot.   "]
["Buňky H10 až I14 obsahují kontingenční tabulku se souhrnem dat z buněk B8 až E16. Kontingenční tabulka má dva sloupce: Kupující a Součet z Částka. Sloupec Kupující obsahuje hodnoty Táta, Klára, Máma a Celkový součet. Sloupec Součet z Částka obsahuje hodnoty 220 Kč, 220 Kč, 810 Kč a 1 300 Kč. Sloupec Kupující tvoří řádkové pole a sloupec Součet z Částka tvoří pole hodnot."]
["Pokud chcete pokračovat v tomto kurzu, stiskněte CTRL+PAGE DOWN. Pokud se chcete vrátit na předchozí list, stiskněte CTRL+PAGE UP."]
[]
[]
[]
[]
[null,"Datum","Kupující","Typ","Částka"]
["Tento příklad ukazuje, jak řádkové pole...","2017-01-01","Táta","Dárky",{"v":95,"d":"95 Kč"}]
["...rozděluje pole hodnot.","2017-01-15","Máma","Jídlo",{"v":325,"d":"325 Kč"},null,null,"Kupující","Součet z Částka"]
[null,"2017-01-17","Máma","Vstupenky",{"v":250,"d":"250 Kč"},null,null,"Klára",{"v":270,"d":"270 Kč"}]
[null,"2017-01-21","Táta","Jídlo",{"v":125,"d":"125 Kč"},null,null,"Máma",{"v":810,"d":"810 Kč"}]
[null,"2017-02-02","Máma","Jídlo",{"v":235,"d":"235 Kč"},null,null,"Táta",{"v":220,"d":"220 Kč"}]
[null,"2017-02-20","Klára","Hudba",{"v":20,"d":"20 Kč"},null,null,"Celkový součet",{"v":1300,"d":"1,300 Kč"}]
[null,"2017-02-25","Klára","Vstupenky",{"v":125,"d":"125 Kč"}]
[null,"2017-02-25","Klára","Sport",{"v":125,"d":"125 Kč"}]

{"sheet":"2","index":2,"n_rows":108,"n_cols":7,"rows_kept":108}
["Když se ale poprvé podíváte na kontingenční tabulku, můžete zjistit, že potřebujete další odpovědi."]
["Když se poprvé podíváte na kontingenční tabulku, můžete mít otázky jako „Kdy tyto nákupy proběhly?“, „Za co jednotlivé osoby utrácely peníze?“ nebo „Co kupovala máma, že to stálo tolik peněz?“."]
["Buňky F11 až G15 v tomto příkladu zobrazují stejnou kontingenční tabulku se dvěma sloupci jako na předchozím listu. Sloupec Kupující je řádkové pole a obsahuje hodnoty Táta, Klára, Máma a Celkový součet. Sloupec Součet z Částka je pole hodnot a obsahuje hodnoty 220 Kč, 220 Kč, 810 Kč a 1 300 Kč. "]
["Pokud chcete pokračovat v tomto kurzu, stiskněte CTRL+PAGE DOWN. Pokud se chcete vrátit na předchozí list, stiskněte CTRL+PAGE UP."]
[]
[]
[]
[]
[]
[]
[{"$nulls":5},"Kupující","Součet z Částka"]
[{"$nulls":5},"Táta",{"v":220,"d":"220 Kč"}]
[{"$nulls":5},"Klára",{"v":270,"d":"270 Kč"}]
[{"$nulls":5},"Máma",{"v":810,"d":"810 Kč"}]
[{"$nulls":5},"Celkový součet",{"v":1300,"d":"1,300 Kč"}]
{"$rows_empty":84}
[null,"Datum","Kupující","Typ","Částka"]
[null,"2017-01-01","Táta","Dárky",{"v":95,"d":"95 Kč"}]
[null,"2017-01-15","Máma","Jídlo",{"v":325,"d":"325 Kč"}]
[null,"2017-01-17","Máma","Vstupenky",{"v":250,"d":"250 Kč"}]
[null,"2017-01-21","Táta","Jídlo",{"v":125,"d":"125 Kč"}]
[null,"2017-02-02","Máma","Jídlo",{"v":235,"d":"235 Kč"}]
[null,"2017-02-20","Klára","Hudba",{"v":20,"d":"20 Kč"}]
[null,"2017-02-25","Klára","Vstupenky",{"v":125,"d":"125 Kč"}]
[null,"2017-02-25","Klára","Sport",{"v":125,"d":"125 Kč"}]

{"sheet":"3","index":3,"n_rows":108,"n_cols":7,"rows_kept":108}
["Všechny tyto otázky jsou zajímavé, ale prozatím se pojďme soustředit jenom na jednu z nich."]
["Za co jednotlivé osoby utrácely peníze?"]
["V zájmu přehlednosti je v buňkách F11 až G15 stejná kontingenční tabulka se dvěma sloupci jako dříve. Sloupec Kupující je řádkové pole a obsahuje hodnoty Táta, Klára, Máma a Celkový součet. Sloupec Součet z Částka je pole hodnot a obsahuje hodnoty 220 Kč, 220 Kč, 810 Kč a 1 300 Kč. "]
["Pokud chcete pokračovat v tomto kurzu, stiskněte CTRL+PAGE DOWN. Pokud se chcete vrátit na předchozí list, stiskněte CTRL+PAGE UP."]
[]
[]
[]
[]
[]
[]
[{"$nulls":5},"Kupující","Součet z Částka"]
[{"$nulls":5},"Táta",{"v":220,"d":"220 Kč"}]
[{"$nulls":5},"Klára",{"v":270,"d":"270 Kč"}]
[{"$nulls":5},"Máma",{"v":810,"d":"810 Kč"}]
[{"$nulls":5},"Celkový součet",{"v":1300,"d":"1,300 Kč"}]
{"$rows_empty":84}
[null,"Datum","Kupující","Typ","Částka"]
[null,"2017-01-01","Táta","Dárky",{"v":95,"d":"95 Kč"}]
[null,"2017-01-15","Máma","Jídlo",{"v":325,"d":"325 Kč"}]
[null,"2017-01-17","Máma","Vstupenky",{"v":250,"d":"250 Kč"}]
[null,"2017-01-21","Táta","Jídlo",{"v":125,"d":"125 Kč"}]
[null,"2017-02-02","Máma","Jídlo",{"v":235,"d":"235 Kč"}]
[null,"2017-02-20","Klára","Hudba",{"v":20,"d":"20 Kč"}]
[null,"2017-02-25","Klára","Vstupenky",{"v":125,"d":"125 Kč"}]
[null,"2017-02-25","Klára","Sport",{"v":125,"d":"125 Kč"}]

{"sheet":"4","index":4,"n_rows":108,"n_cols":9,"rows_kept":108}
["Naposledy jsme hledali odpověď na tuto otázku: „Za co jednotlivé osoby utrácely peníze?“"]
["Odpověď na tuto otázku jsme získali přidáním sloupcového pole Typ. V důsledku toho teď kontingenční tabulka obsahuje pět nových sloupců, které ukazují typy nákupů jednotlivých osob. "]
["Naše nová kontingenční tabulka se teď nachází v buňkách C10 až I15 a obsahuje sloupce Kupující, Jídlo, Hudba, Sport, Vstupenky, Dárky a Celkový součet. Pole Kupující a Celkový součet jsou stejná jako dříve a nové sloupce s podrobnostmi jsou mezi nimi."]
["Pokud chcete pokračovat v tomto kurzu, stiskněte CTRL+PAGE DOWN. Pokud se chcete vrátit na předchozí list, stiskněte CTRL+PAGE UP."]
[]
[]
[]
[]
[]
[null,null,"Součet z Částka","Typ"]
[null,null,"Kupující","Jídlo","Hudba","Sport","Vstupenky","Dárky","Celkový součet"]
[null,null,"Táta",{"v":125,"d":"125 Kč"},{"$nulls":3},{"v":95,"d":"95 Kč"},{"v":220,"d":"220 Kč"}]
[null,null,"Klára",null,{"v":20,"d":"20 Kč"},{"v":125,"d":"125 Kč"},{"v":125,"d":"125 Kč"},null,{"v":270,"d":"270 Kč"}]
[null,null,"Máma",{"v":560,"d":"560 Kč"},null,null,{"v":250,"d":"250 Kč"},null,{"v":810,"d":"810 Kč"}]
[null,null,"Celkový součet",{"v":685,"d":"685 Kč"},{"v":20,"d":"20 Kč"},{"v":125,"d":"125 Kč"},{"v":375,"d":"375 Kč"},{"v":95,"d":"95 Kč"},{"v":1300,"d":"1,300 Kč"}]
{"$rows_empty":84}
[null,"Datum","Kupující","Typ","Částka"]
[null,"2017-01-01","Táta","Dárky",{"v":95,"d":"95 Kč"}]
[null,"2017-01-15","Máma","Jídlo",{"v":325,"d":"325 Kč"}]
[null,"2017-01-17","Máma","Vstupenky",{"v":250,"d":"250 Kč"}]
[null,"2017-01-21","Táta","Jídlo",{"v":125,"d":"125 Kč"}]
[null,"2017-02-02","Máma","Jídlo",{"v":235,"d":"235 Kč"}]
[null,"2017-02-20","Klára","Hudba",{"v":20,"d":"20 Kč"}]
[null,"2017-02-25","Klára","Vstupenky",{"v":125,"d":"125 Kč"}]
[null,"2017-02-25","Klára","Sport",{"v":125,"d":"125 Kč"}]

{"sheet":"5","index":5,"n_rows":108,"n_cols":9,"rows_kept":108}
["Pokud máte potíže s pochopením kontingenční tabulky, vyzkoušejte toto: Čtěte ji zleva a pak shora směrem dolů. V následujícím příkladu je v buňce C12 Táta, v buňce D12 jsou Jídlo za 125 Kč, v buňce E12 je Dárky za 95 Kč a v buňce I12 je Celkový součet 220 Kč. Na řádcích 13 a 14 jsou podrobnosti pro Klára a Mámu a řádek 15 zobrazuje Celkový součet."]
["Pokud chcete pokračovat v tomto kurzu, stiskněte CTRL+PAGE DOWN. Pokud se chcete vrátit na předchozí list, stiskněte CTRL+PAGE UP."]
{"$rows_empty":7}
[null,null,"Součet z Částka","Typ"]
[null,null,"Kupující","Jídlo","Dárky","Hudba","Sport","Vstupenky","Celkový součet"]
[null,null,"Táta",{"v":125,"d":"125 Kč"},{"v":95,"d":"95 Kč"},{"$nulls":3},{"v":220,"d":"220 Kč"}]
[null,null,"Klára",null,null,{"v":20,"d":"20 Kč"},{"v":125,"d":"125 Kč"},{"v":125,"d":"125 Kč"},{"v":270,"d":"270 Kč"}]
[null,null,"Máma",{"v":560,"d":"560 Kč"},{"$nulls":3},{"v":250,"d":"250 Kč"},{"v":810,"d":"810 Kč"}]
[null,null,"Celkový součet",{"v":685,"d":"685 Kč"},{"v":95,"d":"95 Kč"},{"v":20,"d":"20 Kč"},{"v":125,"d":"125 Kč"},{"v":375,"d":"375 Kč"},{"v":1300,"d":"1,300 Kč"}]
{"$rows_empty":84}
[null,"Datum","Kupující","Typ","Částka"]
[null,"2017-01-01","Táta","Dárky",{"v":95,"d":"95 Kč"}]
[null,"2017-01-15","Máma","Jídlo",{"v":325,"d":"325 Kč"}]
[null,"2017-01-17","Máma","Vstupenky",{"v":250,"d":"250 Kč"}]
[null,"2017-01-21","Táta","Jídlo",{"v":125,"d":"125 Kč"}]
[null,"2017-02-02","Máma","Jídlo",{"v":235,"d":"235 Kč"}]
[null,"2017-02-20","Klára","Hudba",{"v":20,"d":"20 Kč"}]
[null,"2017-02-25","Klára","Vstupenky",{"v":125,"d":"125 Kč"}]
[null,"2017-02-25","Klára","Sport",{"v":125,"d":"125 Kč"}]

{"sheet":"6","index":6,"n_rows":3,"n_cols":1,"rows_kept":3}
["Zatím to ještě nedělejte, ale už vás čeká jenom pár kroků a budete pracovat s vlastní kontingenční tabulkou. První věc, kterou uděláte, je vytvoření podrobností ve Sloupce poli. Uděláte to tak, že umístíte pole Typ do oblasti Sloupce."]
["Obrázek se seznamem Pole kontingenční tabulky ukazuje, jak kurzor ve tvaru šipky přetahuje pole Typ do oblasti Sloupce."]
["Pokud chcete pokračovat v tomto kurzu, stiskněte CTRL+PAGE DOWN. Pokud se chcete vrátit na předchozí list, stiskněte CTRL+PAGE UP."]

{"sheet":"7","index":7,"n_rows":108,"n_cols":8,"rows_kept":108}
["1. Oblast kontingenční tabulky pro tento příklad je v buňkách B13 až C17. Přejděte na kteroukoliv z těchto buněk."]
["2. Stisknutím ALT+CA, N otevřete seznam Pole kontingenční tabulky. Fokus se automaticky nastaví do Hledat textového pole: „Hledat“ úpravy"]
["3. Pomocí kláves se šipkami vyberte pole Typ. Až ho vyberete, přidejte ho stisknutím mezerníku do oblasti Řádky. "]
["4. Stisknutím klávesy Tab vyberte pole Typ. Stiskněte klávesu Enter a pak pomocí kláves se šipkami vyberte Přesunout do popisků sloupců a stisknutím klávesy Enter přidejte pole Typ do oblasti Sloupce. Stisknutím ALT+CA+N zavřete podokno Pole kontingenční tabulky."]
["Pokud chcete pokračovat v tomto kurzu, stiskněte CTRL+PAGE DOWN. Pokud se chcete vrátit na předchozí list, stiskněte CTRL+PAGE UP."]
[]
[]
[]
[{"$nulls":7},{"$f":"IF(AND($B$14=\"Kupující\",$H$17=810),\"Výborně! Umístili jste svoje \",\" \")","v":" "}]
[{"$nulls":7},{"$f":"IF(AND($B$14=\"Kupující\",$H$17=810),\"první sloupcové pole.\",\" \")","v":" "}]
[{"$nulls":7},{"$f":"IF(AND($B$14=\"Kupující\",$H$17=810),\"Pokračujte kliknutím na Další...\",\" \")","v":" "}]
[]
[null,"Kupující","Součet z Částka"]
[null,"Táta",{"v":220,"d":"220 Kč"}]
[null,"Klára",{"v":270,"d":"270 Kč"}]
[null,"Máma",{"v":810,"d":"810 Kč"}]
[null,"Celkový součet",{"v":1300,"d":"1,300 Kč"}]
{"$rows_empty":82}
[null,"Datum","Kupující","Typ","Částka"]
[null,"2017-01-01","Táta","Dárky",{"v":95,"d":"95 Kč"}]
[null,"2017-01-15","Máma","Jídlo",{"v":325,"d":"325 Kč"}]
[null,"2017-01-17","Máma","Vstupenky",{"v":250,"d":"250 Kč"}]
[null,"2017-01-21","Táta","Jídlo",{"v":125,"d":"125 Kč"}]
[null,"2017-02-02","Máma","Jídlo",{"v":235,"d":"235 Kč"}]
[null,"2017-02-20","Klára","Hudba",{"v":20,"d":"20 Kč"}]
[null,"2017-02-25","Klára","Vstupenky",{"v":125,"d":"125 Kč"}]
[null,"2017-02-25","Klára","Sport",{"v":125,"d":"125 Kč"}]

{"sheet":"8","index":8,"n_rows":108,"n_cols":9,"rows_kept":108}
["Pojďme si zkontrolovat kontingenční tabulku, kterou jste právě vytvořili. Tentokrát jsme ale přidali speciální barvy, které nám pomůžou odlišit řádkové a sloupcové pole a pole hodnot."]
["Řádkové pole je v buňkách C10 až C13 a je stínované žlutě."]
["Sloupcové pole je v buňkách D9 až H10 a je stínované oranžově."]
["Pole hodnot je v buňkách D11 až H13 a je stínované modře."]
["Pokud chcete pokračovat v tomto kurzu, stiskněte CTRL+PAGE DOWN. Pokud se chcete vrátit na předchozí list, stiskněte CTRL+PAGE UP."]
[]
[]
[]
[null,null,"Součet z Částka","Typ"]
[null,null,"Kupující","Jídlo","Dárky","Hudba","Sport","Vstupenky","Celkový součet"]
[null,null,"Táta",{"v":125,"d":"125 Kč"},{"v":95,"d":"95 Kč"},{"$nulls":3},{"v":220,"d":"220 Kč"}]
[null,null,"Klára",null,null,{"v":20,"d":"20 Kč"},{"v":125,"d":"125 Kč"},{"v":125,"d":"125 Kč"},{"v":270,"d":"270 Kč"}]
[null,null,"Máma",{"v":560,"d":"560 Kč"},{"$nulls":3},{"v":250,"d":"250 Kč"},{"v":810,"d":"810 Kč"}]
[null,null,"Celkový součet",{"v":685,"d":"685 Kč"},{"v":95,"d":"95 Kč"},{"v":20,"d":"20 Kč"},{"v":125,"d":"125 Kč"},{"v":375,"d":"375 Kč"},{"v":1300,"d":"1,300 Kč"}]
{"$rows_empty":85}
[null,"Datum","Kupující","Typ","Částka"]
[null,"2017-01-01","Táta","Dárky",{"v":95,"d":"95 Kč"}]
[null,"2017-01-15","Máma","Jídlo",{"v":325,"d":"325 Kč"}]
[null,"2017-01-17","Máma","Vstupenky",{"v":250,"d":"250 Kč"}]
[null,"2017-01-21","Táta","Jídlo",{"v":125,"d":"125 Kč"}]
[null,"2017-02-02","Máma","Jídlo",{"v":235,"d":"235 Kč"}]
[null,"2017-02-20","Klára","Hudba",{"v":20,"d":"20 Kč"}]
[null,"2017-02-25","Klára","Vstupenky",{"v":125,"d":"125 Kč"}]
[null,"2017-02-25","Klára","Sport",{"v":125,"d":"125 Kč"}]

{"sheet":"9","index":9,"n_rows":3,"n_cols":1,"rows_kept":3}
["Tady je jiný způsob, jak se to dá chápat: Řádkové pole je nalevo a sloupcové pole nahoře. Každé z nich poskytuje podmínku pro pole hodnot, které je sčítá."]
["Koncepční obrázek znázorňuje obdélníkovou oblast se 4 sekcemi. Vlevo dole je žluté řádkové pole, vpravo nahoře je oranžové sloupcové pole a vpravo dole je modré pole hodnot."]
["Pokud chcete pokračovat v tomto kurzu, stiskněte CTRL+PAGE DOWN. Pokud se chcete vrátit na předchozí list, stiskněte CTRL+PAGE UP."]

{"sheet":"10","index":10,"n_rows":3,"n_cols":1,"rows_kept":3}
["Vzpomeňte si na tento koncept při používání seznamu polí. Řádkové pole je nalevo a sloupcové pole nahoře. Každé z nich poskytuje podmínku pro pole hodnot, které je sčítá."]
["Koncepční obrázek znázorňuje seznam Pole kontingenční tabulky. Vlevo dole je žluté řádkové pole, vpravo nahoře je oranžové sloupcové pole a vpravo dole je modré pole hodnot."]
["Pokud chcete pokračovat v tomto kurzu, stiskněte CTRL+PAGE DOWN. Pokud se chcete vrátit na předchozí list, stiskněte CTRL+PAGE UP."]

{"sheet":"11","index":11,"n_rows":121,"n_cols":24,"rows_kept":121}
["Je třeba pamatovat na jednu věc: Pokud sloupcové pole přidá do kontingenční tabulky hodně sloupců, bude velmi široká. "]
["V tomto příkladu teď kontingenční tabulka sahá od buňky C10 až po buňku X15, protože sloupcové pole přidalo 20 nových sloupců. A to je fakt hodně. Způsobí to, že uživatelé se budou muset hodně posouvat..."]
["Pokud chcete pokračovat v tomto kurzu, stiskněte CTRL+PAGE DOWN. Pokud se chcete vrátit na předchozí list, stiskněte CTRL+PAGE UP."]
[]
[]
[]
[]
[]
[]
[null,null,"Součet z Částka","Typ"]
[null,null,"Kupující","Členské příspěvky","Daně","Elektronika","Elektřina","Hudba","Hudební výchova","Jídlo","Knihy","Letenky","Oblečení","Palivo","Parkování","Pojištění auta","Pojištění domácnosti","Sport","Večeře v restauraci","Vstupenky","Zdravotní péče","Zubař","Životní pojištění","Celkový součet"]
[null,null,"Táta",null,{"v":500,"d":"500 Kč"},{"$nulls":6},{"v":500,"d":"500 Kč"},{"$nulls":5},{"v":1000,"d":"1,000 Kč"},{"$nulls":5},{"v":2000,"d":"2,000 Kč"}]
[null,null,"Klára",null,null,{"v":125,"d":"125 Kč"},null,{"v":20,"d":"20 Kč"},{"v":250,"d":"250 Kč"},null,{"v":250,"d":"250 Kč"},null,{"v":125,"d":"125 Kč"},null,{"v":20,"d":"20 Kč"},{"$nulls":3},{"v":20,"d":"20 Kč"},{"v":125,"d":"125 Kč"},{"$nulls":3},{"v":935,"d":"935 Kč"}]
[null,null,"Máma",{"v":125,"d":"125 Kč"},null,null,{"v":70,"d":"70 Kč"},null,null,{"v":470,"d":"470 Kč"},{"$nulls":3},{"v":74,"d":"74 Kč"},null,{"v":74,"d":"74 Kč"},{"v":235,"d":"235 Kč"},{"$nulls":3},{"v":74,"d":"74 Kč"},{"v":235,"d":"235 Kč"},{"v":70,"d":"70 Kč"},{"v":1427,"d":"1,427 Kč"}]
[null,null,"Celkový součet",{"v":125,"d":"125 Kč"},{"v":500,"d":"500 Kč"},{"v":125,"d":"125 Kč"},{"v":70,"d":"70 Kč"},{"v":20,"d":"20 Kč"},{"v":250,"d":"250 Kč"},{"v":470,"d":"470 Kč"},{"v":250,"d":"250 Kč"},{"v":500,"d":"500 Kč"},{"v":125,"d":"125 Kč"},{"v":74,"d":"74 Kč"},{"v":20,"d":"20 Kč"},{"v":74,"d":"74 Kč"},{"v":235,"d":"235 Kč"},{"v":1000,"d":"1,000 Kč"},{"v":20,"d":"20 Kč"},{"v":125,"d":"125 Kč"},{"v":74,"d":"74 Kč"},{"v":235,"d":"235 Kč"},{"v":70,"d":"70 Kč"},{"v":4362,"d":"4,362 Kč"}]
{"$rows_empty":84}
[null,"Datum","Kupující","Typ","Částka"]
[null,"2017-01-17","Táta","Sport",{"v":1000,"d":"1,000 Kč"}]
[null,"2017-01-17","Táta","Letenky",{"v":500,"d":"500 Kč"}]
[null,"2017-01-17","Táta","Daně",{"v":500,"d":"500 Kč"}]
[null,"2017-02-20","Klára","Hudba",{"v":20,"d":"20 Kč"}]
[null,"2017-02-25","Klára","Vstupenky",{"v":125,"d":"125 Kč"}]
[null,"2017-01-21","Klára","Knihy",{"v":250,"d":"250 Kč"}]
[null,"2017-02-20","Klára","Večeře v restauraci",{"v":20,"d":"20 Kč"}]
[null,"2017-02-25","Klára","Oblečení",{"v":125,"d":"125 Kč"}]
[null,"2017-01-21","Klára","Hudební výchova",{"v":250,"d":"250 Kč"}]
[null,"2017-02-20","Klára","Parkování",{"v":20,"d":"20 Kč"}]
[null,"2017-02-25","Klára","Elektronika",{"v":125,"d":"125 Kč"}]
[null,"2017-01-01","Máma","Palivo",{"v":74,"d":"74 Kč"}]
[null,"2017-01-15","Máma","Jídlo",{"v":235,"d":"235 Kč"}]
[null,"2017-01-21","Máma","Členské příspěvky",{"v":125,"d":"125 Kč"}]
[null,"2017-02-02","Máma","Jídlo",{"v":235,"d":"235 Kč"}]
[null,"2017-01-01","Máma","Zdravotní péče",{"v":74,"d":"74 Kč"}]
[null,"2017-01-15","Máma","Elektřina",{"v":70,"d":"70 Kč"}]
[null,"2017-02-02","Máma","Zubař",{"v":235,"d":"235 Kč"}]
[null,"2017-01-01","Máma","Pojištění auta",{"v":74,"d":"74 Kč"}]
[null,"2017-01-15","Máma","Životní pojištění",{"v":70,"d":"70 Kč"}]
[null,"2017-02-02","Máma","Pojištění domácnosti",{"v":235,"d":"235 Kč"}]

{"sheet":"12","index":12,"n_rows":119,"n_cols":5,"rows_kept":119}
["Existuje ale i alternativa k velmi širokým kontingenčním tabulkám: můžete místo toho použít druhé řádkové pole. Druhé řádkové pole se zobrazí odsazené pod první řádkovým pole."]
["V tomto příkladu je kontingenční tabulka v buňkách D8 až E32. Táta, Klára a Máma se v ní zobrazují jako první řádkové pole ve sloupci D. Pod nimi jsou typy útrat jako druhé řádkové pole, s položkami jako Sport, Letenky, Večeře v restauraci atd."]
["JE DOBRÉ VĚDĚT\nPoužití druhé řádkové pole vede k vytvoření svislé kontingenční tabulky namísto vodorovné. Některým lidem se svislé kontingenční tabulky snadněji čtou, protože nevyžadují tolik posouvání ze strany na stranu."]
["JAZYK EXCELU\nNěkteří lidé místo termínu druhé řádkové pole používají termín sekundární řádkové pole."]
["Pokud chcete pokračovat v tomto kurzu, stiskněte CTRL+PAGE DOWN. Pokud se chcete vrátit na předchozí list, stiskněte CTRL+PAGE UP."]
[]
[]
[{"$nulls":3},"Popisky řádků","Součet z Částka"]
[{"$nulls":3},"Táta",{"v":2000,"d":"2,000 Kč"}]
[{"$nulls":3},"Sport",{"v":1000,"d":"1,000 Kč"}]
[{"$nulls":3},"Daně",{"v":500,"d":"500 Kč"}]
[{"$nulls":3},"Letenky",{"v":500,"d":"500 Kč"}]
[{"$nulls":3},"Klára",{"v":935,"d":"935 Kč"}]
[{"$nulls":3},"Knihy",{"v":250,"d":"250 Kč"}]
[{"$nulls":3},"Hudba",{"v":20,"d":"20 Kč"}]
[{"$nulls":3},"Vstupenky",{"v":125,"d":"125 Kč"}]
[{"$nulls":3},"Večeře v restauraci",{"v":20,"d":"20 Kč"}]
[{"$nulls":3},"Parkování",{"v":20,"d":"20 Kč"}]
[{"$nulls":3},"Elektronika",{"v":125,"d":"125 Kč"}]
[{"$nulls":3},"Oblečení",{"v":125,"d":"125 Kč"}]
[{"$nulls":3},"Hudební výchova",{"v":250,"d":"250 Kč"}]
[{"$nulls":3},"Máma",{"v":1427,"d":"1,427 Kč"}]
[{"$nulls":3},"Jídlo",{"v":470,"d":"470 Kč"}]
[{"$nulls":3},"Palivo",{"v":74,"d":"74 Kč"}]
[{"$nulls":3},"Elektřina",{"v":70,"d":"70 Kč"}]
[{"$nulls":3},"Zdravotní péče",{"v":74,"d":"74 Kč"}]
[{"$nulls":3},"Zubař",{"v":235,"d":"235 Kč"}]
[{"$nulls":3},"Pojištění auta",{"v":74,"d":"74 Kč"}]
[{"$nulls":3},"Členské příspěvky",{"v":125,"d":"125 Kč"}]
[{"$nulls":3},"Životní pojištění",{"v":70,"d":"70 Kč"}]
[{"$nulls":3},"Pojištění domácnosti",{"v":235,"d":"235 Kč"}]
[{"$nulls":3},"Celkový součet",{"v":4362,"d":"4,362 Kč"}]
{"$rows_empty":65}
[null,"Datum","Kupující","Typ","Částka"]
[null,"2017-01-17","Táta","Sport",{"v":1000,"d":"1,000 Kč"}]
[null,"2017-01-17","Táta","Letenky",{"v":500,"d":"500 Kč"}]
[null,"2017-01-17","Táta","Daně",{"v":500,"d":"500 Kč"}]
[null,"2017-02-20","Klára","Hudba",{"v":20,"d":"20 Kč"}]
[null,"2017-02-25","Klára","Vstupenky",{"v":125,"d":"125 Kč"}]
[null,"2017-01-21","Klára","Knihy",{"v":250,"d":"250 Kč"}]
[null,"2017-02-20","Klára","Večeře v restauraci",{"v":20,"d":"20 Kč"}]
[null,"2017-02-25","Klára","Oblečení",{"v":125,"d":"125 Kč"}]
[null,"2017-01-21","Klára","Hudební výchova",{"v":250,"d":"250 Kč"}]
[null,"2017-02-20","Klára","Parkování",{"v":20,"d":"20 Kč"}]
[null,"2017-02-25","Klára","Elektronika",{"v":125,"d":"125 Kč"}]
[null,"2017-01-01","Máma","Palivo",{"v":74,"d":"74 Kč"}]
[null,"2017-01-15","Máma","Jídlo",{"v":235,"d":"235 Kč"}]
[null,"2017-01-21","Máma","Členské příspěvky",{"v":125,"d":"125 Kč"}]
[null,"2017-02-02","Máma","Jídlo",{"v":235,"d":"235 Kč"}]
[null,"2017-01-01","Máma","Zdravotní péče",{"v":74,"d":"74 Kč"}]
[null,"2017-01-15","Máma","Elektřina",{"v":70,"d":"70 Kč"}]
[null,"2017-02-02","Máma","Zubař",{"v":235,"d":"235 Kč"}]
[null,"2017-01-01","Máma","Pojištění auta",{"v":74,"d":"74 Kč"}]
[null,"2017-01-15","Máma","Životní pojištění",{"v":70,"d":"70 Kč"}]
[null,"2017-02-02","Máma","Pojištění domácnosti",{"v":235,"d":"235 Kč"}]

{"sheet":"13","index":13,"n_rows":3,"n_cols":1,"rows_kept":3}
["Na dalším listu přidáte druhé řádkové pole. Uděláte to tak, že přetáhnete pole Typ pod pole Kupující do oblasti Řádky."]
["Obrázek se seznamem Pole kontingenční tabulky ukazuje, jak kurzor ve tvaru šipky přetahuje pole Typ do oblasti Řádky."]
["Pokud chcete pokračovat v tomto kurzu, stiskněte CTRL+PAGE DOWN. Pokud se chcete vrátit na předchozí list, stiskněte CTRL+PAGE UP."]

{"sheet":"14","index":14,"n_rows":122,"n_cols":9,"rows_kept":122}
["1. Oblast kontingenční tabulky pro tento příklad je v buňkách B13 až C17. Přejděte na kteroukoliv z těchto buněk. "]
["2. Stisknutím ALT+CA, N otevřete seznam Pole kontingenční tabulky. Fokus se automaticky nastaví do Hledat textového pole: Zadejte slova, která chcete hledat. Nic nezadávejte, místo toho stiskněte jednou klávesu Tab. Poznámka: Pokud se seznam polí nezobrazí, stiskněte znovu ALT+CA, N."]
["3. Stisknutím kláves se šipkami přejděte na pole Typ. Stisknutím mezerníku přidejte pole Typ do oblasti Řádky. "]
["4. Stisknutím klávesy ESC zavřete podokno Pole kontingenční tabulky. "]
["Pokud chcete pokračovat v tomto kurzu, stiskněte CTRL+PAGE DOWN. Pokud se chcete vrátit na předchozí list, stiskněte CTRL+PAGE UP.",{"$nulls":7},{"$f":"IF(AND($B$15=\"Daně\",$C$36=70),\"Jde vám to skvěle! Přidali\",\" \")","v":" "}]
[{"$nulls":8},{"$f":"IF(AND($B$15=\"Daně\",$C$36=70),\"jste do kontingenční tabulky\",\" \")","v":" "}]
[{"$nulls":8},{"$f":"IF(AND($B$15=\"Daně\",$C$36=70),\"druhé řádkové pole. Posuňte\",\" \")","v":" "}]
[{"$nulls":8},{"$f":"IF(AND($B$15=\"Daně\",$C$36=70),\"se dolů a klikněte na Další.\",\" \")","v":" "}]
[]
[]
[]
[]
[null,"Popisky řádků","Součet z Částka"]
[null,"Táta",{"v":2000,"d":"2,000 Kč"}]
[null,"Klára",{"v":935,"d":"935 Kč"}]
[null,"Máma",{"v":1427,"d":"1,427 Kč"}]
[null,"Celkový součet",{"v":4362,"d":"4,362 Kč"}]
{"$rows_empty":83}
[null,"Datum","Kupující","Typ","Částka"]
[null,"2017-01-17","Táta","Sport",{"v":1000,"d":"1,000 Kč"}]
[null,"2017-01-17","Táta","Letenky",{"v":500,"d":"500 Kč"}]
[null,"2017-01-17","Táta","Daně",{"v":500,"d":"500 Kč"}]
[null,"2017-02-20","Klára","Hudba",{"v":20,"d":"20 Kč"}]
[null,"2017-02-25","Klára","Vstupenky",{"v":125,"d":"125 Kč"}]
[null,"2017-01-21","Klára","Knihy",{"v":250,"d":"250 Kč"}]
[null,"2017-02-20","Klára","Večeře v restauraci",{"v":20,"d":"20 Kč"}]
[null,"2017-02-25","Klára","Oblečení",{"v":125,"d":"125 Kč"}]
[null,"2017-01-21","Klára","Hudební výchova",{"v":250,"d":"250 Kč"}]
[null,"2017-02-20","Klára","Parkování",{"v":20,"d":"20 Kč"}]
[null,"2017-02-25","Klára","Elektronika",{"v":125,"d":"125 Kč"}]
[null,"2017-01-01","Máma","Palivo",{"v":74,"d":"74 Kč"}]
[null,"2017-01-15","Máma","Jídlo",{"v":235,"d":"235 Kč"}]
[null,"2017-01-21","Máma","Členské příspěvky",{"v":125,"d":"125 Kč"}]
[null,"2017-02-02","Máma","Jídlo",{"v":235,"d":"235 Kč"}]
[null,"2017-01-01","Máma","Zdravotní péče",{"v":74,"d":"74 Kč"}]
[null,"2017-01-15","Máma","Elektřina",{"v":70,"d":"70 Kč"}]
[null,"2017-02-02","Máma","Zubař",{"v":235,"d":"235 Kč"}]
[null,"2017-01-01","Máma","Pojištění auta",{"v":74,"d":"74 Kč"}]
[null,"2017-01-15","Máma","Životní pojištění",{"v":70,"d":"70 Kč"}]
[null,"2017-02-02","Máma","Pojištění domácnosti",{"v":235,"d":"235 Kč"}]

{"sheet":"15","index":15,"n_rows":121,"n_cols":7,"rows_kept":121}
["Pokud potřebujete kontingenční tabulku zjednodušit, můžete druhé řádkové pole sbalit, čímž se jeho podrobnosti skryjí. "]
["Kontingenční tabulka pro tento příklad je v buňkách F7 až G31. Výběrem buňky F8 zvolte v první řádkovém poli Táta. Druhé řádkové pole pak můžete rozbalit stisknutím kláves Alt+CA > R nebo sbalit stisknutím X."]
["Pokud chcete pokračovat v tomto kurzu, stiskněte CTRL+PAGE DOWN. Pokud se chcete vrátit na předchozí list, stiskněte CTRL+PAGE UP."]
[]
[]
[{"$nulls":5},{"$f":"IF(AND($F$9=\"Klára\",$G$9=935),\"Hezky!\",\" \")","v":" "}]
[{"$nulls":5},"Popisky řádků","Součet z Částka"]
[{"$nulls":5},"Táta",{"v":2000,"d":"2,000 Kč"}]
[{"$nulls":5},"Sport",{"v":1000,"d":"1,000 Kč"}]
[{"$nulls":5},"Daně",{"v":500,"d":"500 Kč"}]
[{"$nulls":5},"Letenky",{"v":500,"d":"500 Kč"}]
[{"$nulls":5},"Klára",{"v":935,"d":"935 Kč"}]
[{"$nulls":5},"Knihy",{"v":250,"d":"250 Kč"}]
[{"$nulls":5},"Hudba",{"v":20,"d":"20 Kč"}]
[{"$nulls":5},"Vstupenky",{"v":125,"d":"125 Kč"}]
[{"$nulls":5},"Večeře v restauraci",{"v":20,"d":"20 Kč"}]
[{"$nulls":5},"Parkování",{"v":20,"d":"20 Kč"}]
[{"$nulls":5},"Elektronika",{"v":125,"d":"125 Kč"}]
[{"$nulls":5},"Oblečení",{"v":125,"d":"125 Kč"}]
[{"$nulls":5},"Hudební výchova",{"v":250,"d":"250 Kč"}]
[{"$nulls":5},"Máma",{"v":1427,"d":"1,427 Kč"}]
[{"$nulls":5},"Zdravotní péče",{"v":74,"d":"74 Kč"}]
[{"$nulls":5},"Zubař",{"v":235,"d":"235 Kč"}]
[{"$nulls":5},"Elektřina",{"v":70,"d":"70 Kč"}]
[{"$nulls":5},"Jídlo",{"v":470,"d":"470 Kč"}]
[{"$nulls":5},"Palivo",{"v":74,"d":"74 Kč"}]
[{"$nulls":5},"Pojištění auta",{"v":74,"d":"74 Kč"}]
[{"$nulls":5},"Členské příspěvky",{"v":125,"d":"125 Kč"}]
[{"$nulls":5},"Životní pojištění",{"v":70,"d":"70 Kč"}]
[{"$nulls":5},"Pojištění domácnosti",{"v":235,"d":"235 Kč"}]
[{"$nulls":5},"Celkový součet",{"v":4362,"d":"4,362 Kč"}]
{"$rows_empty":68}
[null,"Datum","Kupující","Typ","Částka"]
[null,"2017-01-17","Táta","Sport",{"v":1000,"d":"1,000 Kč"}]
[null,"2017-01-17","Táta","Letenky",{"v":500,"d":"500 Kč"}]
[null,"2017-01-17","Táta","Daně",{"v":500,"d":"500 Kč"}]
[null,"2017-02-20","Klára","Hudba",{"v":20,"d":"20 Kč"}]
[null,"2017-02-25","Klára","Vstupenky",{"v":125,"d":"125 Kč"}]
[null,"2017-01-21","Klára","Knihy",{"v":250,"d":"250 Kč"}]
[null,"2017-02-20","Klára","Večeře v restauraci",{"v":20,"d":"20 Kč"}]
[null,"2017-02-25","Klára","Oblečení",{"v":125,"d":"125 Kč"}]
[null,"2017-01-21","Klára","Hudební výchova",{"v":250,"d":"250 Kč"}]
[null,"2017-02-20","Klára","Parkování",{"v":20,"d":"20 Kč"}]
[null,"2017-02-25","Klára","Elektronika",{"v":125,"d":"125 Kč"}]
[null,"2017-01-01","Máma","Palivo",{"v":74,"d":"74 Kč"}]
[null,"2017-01-15","Máma","Jídlo",{"v":235,"d":"235 Kč"}]
[null,"2017-01-21","Máma","Členské příspěvky",{"v":125,"d":"125 Kč"}]
[null,"2017-02-02","Máma","Jídlo",{"v":235,"d":"235 Kč"}]
[null,"2017-01-01","Máma","Zdravotní péče",{"v":74,"d":"74 Kč"}]
[null,"2017-01-15","Máma","Elektřina",{"v":70,"d":"70 Kč"}]
[null,"2017-02-02","Máma","Zubař",{"v":235,"d":"235 Kč"}]
[null,"2017-01-01","Máma","Pojištění auta",{"v":74,"d":"74 Kč"}]
[null,"2017-01-15","Máma","Životní pojištění",{"v":70,"d":"70 Kč"}]
[null,"2017-02-02","Máma","Pojištění domácnosti",{"v":235,"d":"235 Kč"}]

{"sheet":"16","index":16,"n_rows":121,"n_cols":7,"rows_kept":121}
["Můžete také sbalit nebo rozbalit celé druhé řádkové pole, aby se kontingenční tabulka ještě více zjednodušila."]
["Tady je klíč."]
["Vyberte oblast dat kontingenční tabulky v buňkách F7 až G31 a sbalte celou skupinu pomocí kláves Alt+CA > X. Klávesy Alt+CA > R naopak celou skupinu rozbalí."]
["Pokud chcete pokračovat v tomto kurzu, stiskněte CTRL+PAGE DOWN. Pokud se chcete vrátit na předchozí list, stiskněte CTRL+PAGE UP."]
[]
[{"$nulls":5},{"$f":"IF(AND($F$9=\"Klára\",$G$9=935),\"Přesně taky!\",\" \")","v":" "}]
[{"$nulls":5},"Popisky řádků","Součet z Částka"]
[{"$nulls":5},"Táta",{"v":2000,"d":"2,000 Kč"}]
[{"$nulls":5},"Sport",{"v":1000,"d":"1,000 Kč"}]
[{"$nulls":5},"Daně",{"v":500,"d":"500 Kč"}]
[{"$nulls":5},"Letenky",{"v":500,"d":"500 Kč"}]
[{"$nulls":5},"Klára",{"v":935,"d":"935 Kč"}]
[{"$nulls":5},"Knihy",{"v":250,"d":"250 Kč"}]
[{"$nulls":5},"Hudba",{"v":20,"d":"20 Kč"}]
[{"$nulls":5},"Vstupenky",{"v":125,"d":"125 Kč"}]
[{"$nulls":5},"Večeře v restauraci",{"v":20,"d":"20 Kč"}]
[{"$nulls":5},"Parkování",{"v":20,"d":"20 Kč"}]
[{"$nulls":5},"Elektronika",{"v":125,"d":"125 Kč"}]
[{"$nulls":5},"Oblečení",{"v":125,"d":"125 Kč"}]
[{"$nulls":5},"Hudební výchova",{"v":250,"d":"250 Kč"}]
[{"$nulls":5},"Máma",{"v":1427,"d":"1,427 Kč"}]
[{"$nulls":5},"Životní pojištění",{"v":70,"d":"70 Kč"}]
[{"$nulls":5},"Zubař",{"v":235,"d":"235 Kč"}]
[{"$nulls":5},"Elektřina",{"v":70,"d":"70 Kč"}]
[{"$nulls":5},"Jídlo",{"v":470,"d":"470 Kč"}]
[{"$nulls":5},"Palivo",{"v":74,"d":"74 Kč"}]
[{"$nulls":5},"Pojištění auta",{"v":74,"d":"74 Kč"}]
[{"$nulls":5},"Členské příspěvky",{"v":125,"d":"125 Kč"}]
[{"$nulls":5},"Zdravotní péče",{"v":74,"d":"74 Kč"}]
[{"$nulls":5},"Pojištění domácnosti",{"v":235,"d":"235 Kč"}]
[{"$nulls":5},"Celkový součet",{"v":4362,"d":"4,362 Kč"}]
{"$rows_empty":68}
[null,"Datum","Kupující","Typ","Částka"]
[null,"2017-01-17","Táta","Sport",{"v":1000,"d":"1,000 Kč"}]
[null,"2017-01-17","Táta","Letenky",{"v":500,"d":"500 Kč"}]
[null,"2017-01-17","Táta","Daně",{"v":500,"d":"500 Kč"}]
[null,"2017-02-20","Klára","Hudba",{"v":20,"d":"20 Kč"}]
[null,"2017-02-25","Klára","Vstupenky",{"v":125,"d":"125 Kč"}]
[null,"2017-01-21","Klára","Knihy",{"v":250,"d":"250 Kč"}]
[null,"2017-02-20","Klára","Večeře v restauraci",{"v":20,"d":"20 Kč"}]
[null,"2017-02-25","Klára","Oblečení",{"v":125,"d":"125 Kč"}]
[null,"2017-01-21","Klára","Hudební výchova",{"v":250,"d":"250 Kč"}]
[null,"2017-02-20","Klára","Parkování",{"v":20,"d":"20 Kč"}]
[null,"2017-02-25","Klára","Elektronika",{"v":125,"d":"125 Kč"}]
[null,"2017-01-01","Máma","Palivo",{"v":74,"d":"74 Kč"}]
[null,"2017-01-15","Máma","Jídlo",{"v":235,"d":"235 Kč"}]
[null,"2017-01-21","Máma","Členské příspěvky",{"v":125,"d":"125 Kč"}]
[null,"2017-02-02","Máma","Jídlo",{"v":235,"d":"235 Kč"}]
[null,"2017-01-01","Máma","Zdravotní péče",{"v":74,"d":"74 Kč"}]
[null,"2017-01-15","Máma","Elektřina",{"v":70,"d":"70 Kč"}]
[null,"2017-02-02","Máma","Zubař",{"v":235,"d":"235 Kč"}]
[null,"2017-01-01","Máma","Pojištění auta",{"v":74,"d":"74 Kč"}]
[null,"2017-01-15","Máma","Životní pojištění",{"v":70,"d":"70 Kč"}]
[null,"2017-02-02","Máma","Pojištění domácnosti",{"v":235,"d":"235 Kč"}]

{"sheet":"17","index":17,"n_rows":107,"n_cols":13,"rows_kept":107}
["Můžete také mít více než jedno sloupcové pole. I ta se dají sbalovat nebo rozbalovat."]
["Kontingenční tabulka pro tento příklad je v buňkách B13 až M19. V tomto případě máme v oblasti Sloupce kategorii Typ, která zahrnuje položky Jídlo a Služby."]
["VYZKOUŠEJTE SI TO\nVyberte položku Jídlo v buňce C14 a sbalte celé pole stisknutím Alt+CA > X. Stisknutím Alt+CA > R ho zase rozbalte."]
["Pokud chcete pokračovat v tomto kurzu, stiskněte CTRL+PAGE DOWN. Pokud se chcete vrátit na předchozí list, stiskněte CTRL+PAGE UP."]
{"$rows_empty":7}
[null,null,{"$f":"IF(AND($C$16=398,$D$15=\"Leden\"),\"Dobrá práce!\",\" \")","v":" "}]
[null,"Součet z Částka","Popisky sloupců"]
[null,null,"Jídlo",{"$nulls":3},"Jídlo Celkem","Služby",{"$nulls":3},"Služby Celkem","Celkový součet"]
[null,"Popisky řádků","Leden","Únor","Březen","Duben",null,"Leden","Únor","Březen","Duben"]
[null,"Klára",{"v":74,"d":"74 Kč"},{"v":74,"d":"74 Kč"},{"v":125,"d":"125 Kč"},{"v":125,"d":"125 Kč"},{"v":398,"d":"398 Kč"},{"$nulls":5},{"v":398,"d":"398 Kč"}]
[null,"Táta",{"v":235,"d":"235 Kč"},{"v":235,"d":"235 Kč"},{"v":235,"d":"235 Kč"},{"v":74,"d":"74 Kč"},{"v":779,"d":"779 Kč"},{"$nulls":5},{"v":779,"d":"779 Kč"}]
[null,"Máma",{"$nulls":5},{"v":1000,"d":"1,000 Kč"},{"v":1000,"d":"1,000 Kč"},{"v":20,"d":"20 Kč"},{"v":70,"d":"70 Kč"},{"v":2090,"d":"2,090 Kč"},{"v":2090,"d":"2,090 Kč"}]
[null,"Celkový součet",{"v":309,"d":"309 Kč"},{"v":309,"d":"309 Kč"},{"v":360,"d":"360 Kč"},{"v":199,"d":"199 Kč"},{"v":1177,"d":"1,177 Kč"},{"v":1000,"d":"1,000 Kč"},{"v":1000,"d":"1,000 Kč"},{"v":20,"d":"20 Kč"},{"v":70,"d":"70 Kč"},{"v":2090,"d":"2,090 Kč"},{"v":3267,"d":"3,267 Kč"}]
{"$rows_empty":75}
[null,"Měsíc","Kupující","Typ","Částka"]
[null,"Leden","Klára","Jídlo",{"v":74,"d":"74 Kč"}]
[null,"Leden","Táta","Jídlo",{"v":235,"d":"235 Kč"}]
[null,"Leden","Máma","Služby",{"v":1000,"d":"1,000 Kč"}]
[null,"Únor","Klára","Jídlo",{"v":74,"d":"74 Kč"}]
[null,"Únor","Táta","Jídlo",{"v":235,"d":"235 Kč"}]
[null,"Únor","Máma","Služby",{"v":1000,"d":"1,000 Kč"}]
[null,"Březen","Klára","Jídlo",{"v":125,"d":"125 Kč"}]
[null,"Březen","Táta","Jídlo",{"v":235,"d":"235 Kč"}]
[null,"Březen","Máma","Služby",{"v":20,"d":"20 Kč"}]
[null,"Duben","Klára","Jídlo",{"v":125,"d":"125 Kč"}]
[null,"Duben","Táta","Jídlo",{"v":74,"d":"74 Kč"}]
[null,"Duben","Máma","Služby",{"v":70,"d":"70 Kč"}]

{"sheet":"18","index":18,"n_rows":146,"n_cols":5,"rows_kept":146}
["Měli byste si zapamatovat jednu věc: Pokud potřebujete další podrobnosti, je možné přidat mnoho dalších řádkových nebo sloupcových polí. V tomto příkladu máme tři řádková pole."]
["Kontingenční tabulka v tomto příkladu zabírá buňky D8 až E29 a ve sloupci D obsahuje pole pro Sezóna, Kupující a Typ. Ve sloupci E jsou Součet z Částka."]
["TIP OD ODBORNÍKA\nSamotný fakt, že můžete přidat spoustu polí, ještě neznamená, že byste to museli dělat. V tomto příkladu to ještě funguje dobře. Ale příliš velký počet polí se všemi jejich odsazeními může někdy způsobit, že kontingenční tabulka se stane příliš složitou a ostatní lidé budou mít problémy s jejím pochopením. "]
["Pokud chcete pokračovat v tomto kurzu, stiskněte CTRL+PAGE DOWN. Pokud se chcete vrátit na předchozí list, stiskněte CTRL+PAGE UP."]
[]
[]
[]
[{"$nulls":3},"Popisky řádků","Součet z Částka"]
[{"$nulls":3},"Podzim",{"v":5425,"d":"5,425 Kč"}]
[{"$nulls":3},"Máma",{"v":5425,"d":"5,425 Kč"}]
[{"$nulls":3},"Pojištění",{"v":1272,"d":"1,272 Kč"}]
[{"$nulls":3},"Nájemné",{"v":3220,"d":"3,220 Kč"}]
[{"$nulls":3},"Služby",{"v":933,"d":"933 Kč"}]
[{"$nulls":3},"Jaro",{"v":4760,"d":"4,760 Kč"}]
[{"$nulls":3},"Táta",{"v":4760,"d":"4,760 Kč"}]
[{"$nulls":3},"Pojištění",{"v":1040,"d":"1,040 Kč"}]
[{"$nulls":3},"Nájemné",{"v":2400,"d":"2,400 Kč"}]
[{"$nulls":3},"Služby",{"v":1320,"d":"1,320 Kč"}]
[{"$nulls":3},"Léto",{"v":3473,"d":"3,473 Kč"}]
[{"$nulls":3},"Máma",{"v":3473,"d":"3,473 Kč"}]
[{"$nulls":3},"Pojištění",{"v":1080,"d":"1,080 Kč"}]
[{"$nulls":3},"Nájemné",{"v":1260,"d":"1,260 Kč"}]
[{"$nulls":3},"Služby",{"v":1133,"d":"1,133 Kč"}]
[{"$nulls":3},"Zima",{"v":4100,"d":"4,100 Kč"}]
[{"$nulls":3},"Táta",{"v":4100,"d":"4,100 Kč"}]
[{"$nulls":3},"Pojištění",{"v":1030,"d":"1,030 Kč"}]
[{"$nulls":3},"Nájemné",{"v":1420,"d":"1,420 Kč"}]
[{"$nulls":3},"Služby",{"v":1650,"d":"1,650 Kč"}]
[{"$nulls":3},"Celkový součet",{"v":17758,"d":"17,758 Kč"}]
{"$rows_empty":68}
[null,"Kupující","Sezóna","Typ","Částka"]
[null,"Táta","Zima","Pojištění",{"v":300,"d":"300 Kč"}]
[null,"Táta","Zima","Nájemné",{"v":200,"d":"200 Kč"}]
[null,"Táta","Zima","Služby",{"v":400,"d":"400 Kč"}]
[null,"Táta","Zima","Pojištění",{"v":300,"d":"300 Kč"}]
[null,"Táta","Zima","Nájemné",{"v":800,"d":"800 Kč"}]
[null,"Táta","Zima","Služby",{"v":400,"d":"400 Kč"}]
[null,"Táta","Zima","Pojištění",{"v":200,"d":"200 Kč"}]
[null,"Táta","Zima","Nájemné",{"v":300,"d":"300 Kč"}]
[null,"Táta","Zima","Služby",{"v":450,"d":"450 Kč"}]
[null,"Táta","Zima","Pojištění",{"v":230,"d":"230 Kč"}]
[null,"Táta","Zima","Nájemné",{"v":120,"d":"120 Kč"}]
[null,"Táta","Zima","Služby",{"v":400,"d":"400 Kč"}]
[null,"Táta","Jaro","Pojištění",{"v":210,"d":"210 Kč"}]
[null,"Táta","Jaro","Nájemné",{"v":300,"d":"300 Kč"}]
[null,"Táta","Jaro","Služby",{"v":400,"d":"400 Kč"}]
[null,"Táta","Jaro","Pojištění",{"v":230,"d":"230 Kč"}]
[null,"Táta","Jaro","Nájemné",{"v":900,"d":"900 Kč"}]
[null,"Táta","Jaro","Služby",{"v":300,"d":"300 Kč"}]
[null,"Táta","Jaro","Pojištění",{"v":200,"d":"200 Kč"}]
[null,"Táta","Jaro","Nájemné",{"v":1000,"d":"1,000 Kč"}]
[null,"Táta","Jaro","Služby",{"v":220,"d":"220 Kč"}]
[null,"Táta","Jaro","Pojištění",{"v":400,"d":"400 Kč"}]
[null,"Táta","Jaro","Nájemné",{"v":200,"d":"200 Kč"}]
[null,"Táta","Jaro","Služby",{"v":400,"d":"400 Kč"}]
[null,"Máma","Léto","Pojištění",{"v":100,"d":"100 Kč"}]
[null,"Máma","Léto","Nájemné",{"v":30,"d":"30 Kč"}]
[null,"Máma","Léto","Služby",{"v":123,"d":"123 Kč"}]
[null,"Máma","Léto","Pojištění",{"v":300,"d":"300 Kč"}]
[null,"Máma","Léto","Nájemné",{"v":350,"d":"350 Kč"}]
[null,"Máma","Léto","Služby",{"v":230,"d":"230 Kč"}]
[null,"Máma","Léto","Pojištění",{"v":120,"d":"120 Kč"}]
[null,"Máma","Léto","Nájemné",{"v":640,"d":"640 Kč"}]
[null,"Máma","Léto","Služby",{"v":530,"d":"530 Kč"}]
[null,"Máma","Léto","Pojištění",{"v":560,"d":"560 Kč"}]
[null,"Máma","Léto","Nájemné",{"v":240,"d":"240 Kč"}]
[null,"Máma","Léto","Služby",{"v":250,"d":"250 Kč"}]
[null,"Máma","Podzim","Pojištění",{"v":62,"d":"62 Kč"}]
[null,"Máma","Podzim","Nájemné",{"v":600,"d":"600 Kč"}]
[null,"Máma","Podzim","Služby",{"v":340,"d":"340 Kč"}]
[null,"Máma","Podzim","Pojištění",{"v":205,"d":"205 Kč"}]
[null,"Máma","Podzim","Nájemné",{"v":500,"d":"500 Kč"}]
[null,"Máma","Podzim","Služby",{"v":403,"d":"403 Kč"}]
[null,"Máma","Podzim","Pojištění",{"v":503,"d":"503 Kč"}]
[null,"Máma","Podzim","Nájemné",{"v":2000,"d":"2,000 Kč"}]
[null,"Máma","Podzim","Služby",{"v":140,"d":"140 Kč"}]
[null,"Máma","Podzim","Pojištění",{"v":502,"d":"502 Kč"}]
[null,"Máma","Podzim","Nájemné",{"v":120,"d":"120 Kč"}]
[null,"Máma","Podzim","Služby",{"v":50,"d":"50 Kč"}]

{"sheet":"19","index":19,"n_rows":55,"n_cols":5,"rows_kept":55}
["Jste připravení na další praktické cvičení? Podívejte se na data níže v buňkách B7 až E55. Až budete připravení, přejděte na další list a procvičíte si, co jste se zatím naučili. "]
["Nemusíte podrobně studovat všechny řádky dat. Podívejte se jenom na názvy polí na řádku 7. S těmi budete pracovat na dalším listu. "]
["Pokud chcete pokračovat v tomto kurzu, stiskněte CTRL+PAGE DOWN. Pokud se chcete vrátit na předchozí list, stiskněte CTRL+PAGE UP."]
[]
[]
[]
[null,"Sezóna","Prodejce","Produkt","Prodané jednotky"]
[null,"Zima","Jana","Pomeranče",300]
[null,"Zima","Jiří","Grapefruity",200]
[null,"Zima","David","Jablka",400]
[null,"Zima","Jana","Banány",300]
[null,"Zima","Jiří","Pomeranče",800]
[null,"Zima","David","Grapefruity",400]
[null,"Zima","Jana","Jablka",200]
[null,"Zima","Jiří","Banány",300]
[null,"Zima","David","Pomeranče",450]
[null,"Zima","Jana","Grapefruity",230]
[null,"Zima","Jiří","Jablka",120]
[null,"Zima","David","Banány",400]
[null,"Jaro","Jana","Řepa",210]
[null,"Jaro","Jiří","Brambory",300]
[null,"Jaro","David","Hlávkový salát",400]
[null,"Jaro","Jana","Ředkvičky",230]
[null,"Jaro","Jiří","Řepa",900]
[null,"Jaro","David","Brambory",300]
[null,"Jaro","Jana","Hlávkový salát",200]
[null,"Jaro","Jiří","Ředkvičky",1000]
[null,"Jaro","David","Řepa",220]
[null,"Jaro","Jana","Brambory",400]
[null,"Jaro","Jiří","Hlávkový salát",200]
[null,"Jaro","David","Ředkvičky",400]
[null,"Léto","Jana","Borůvky",100]
[null,"Léto","Jiří","Jahody",30]
[null,"Léto","David","Hrozny",123]
[null,"Léto","Jana","Dýně",300]
[null,"Léto","Jiří","Borůvky",350]
[null,"Léto","David","Jahody",230]
[null,"Léto","Jana","Hrozny",120]
[null,"Léto","Jiří","Dýně",640]
[null,"Léto","David","Borůvky",530]
[null,"Léto","Jana","Jahody",560]
[null,"Léto","Jiří","Hrozny",240]
[null,"Léto","David","Dýně",250]
[null,"Podzim","Jana","Tykve",62]
[null,"Podzim","Jiří","Cukety",600]
[null,"Podzim","David","Jablka",340]
[null,"Podzim","Jana","Pomeranče",205]
[null,"Podzim","Jiří","Tykve",500]
[null,"Podzim","David","Cukety",403]
[null,"Podzim","Jana","Jablka",503]
[null,"Podzim","Jiří","Pomeranče",2000]
[null,"Podzim","David","Tykve",140]
[null,"Podzim","Jana","Cukety",502]
[null,"Podzim","Jiří","Jablka",120]
[null,"Podzim","David","Pomeranče",50]

{"sheet":"20","index":20,"n_rows":17,"n_cols":8,"rows_kept":17}
["1. Oblast kontingenční tabulky pro tento příklad je v buňkách B12 až C17. Přejděte na kteroukoliv z těchto buněk. \n\n"]
["2. Stisknutím ALT+CA, N otevřete seznam Pole kontingenční tabulky. Fokus se automaticky nastaví do Hledat textového pole: Zadejte slova, která chcete hledat. Nic nezadávejte, místo toho stiskněte jednou klávesu Tab. Poznámka: Pokud se seznam polí nezobrazí, stiskněte znovu ALT+CA, N."]
["3. Stisknutím kláves se šipkami přejděte na pole Prodejce. Stisknutím mezerníku přidejte pole Prodejce do oblasti Řádky. Pokud chcete zobrazit podrobnosti o Prodejce v oblasti Sloupce, přesuňte se pomocí klávesy Tab na pole Prodejce v oblasti Řádky, stiskněte mezerník a vyberte Přesunout do popisků sloupců. Stisknutím klávesy ESC zavřete podokno Pole kontingenční tabulky. "]
["4. Zjistěte, kdo prodal nejvíce položek na podzim, a proveďte výběr v buňce H8. "]
["Pokud chcete pokračovat v tomto kurzu, stiskněte CTRL+PAGE DOWN. Pokud se chcete vrátit na předchozí list, stiskněte CTRL+PAGE UP."]
[]
[{"$nulls":7},"Vyberte jednu možnost:"]
[]
[{"$nulls":7},{"$f":"IF($H$8=\"Jiří\",\"Máte pravdu!\",IF($H$8=\"David\",\"Zkuste to znovu...\",IF($H$8=\"Jana\",\"To není úplně správně...\",IF($H$8=\" \",\" \",\" \"))))","v":" "}]
[]
[]
[null,"Popisky řádků","Součet z Prodané jednotky"]
[null,"Podzim",{"v":5425,"d":"5,425"}]
[null,"Jaro",{"v":4760,"d":"4,760"}]
[null,"Léto",{"v":3473,"d":"3,473"}]
[null,"Zima",{"v":4100,"d":"4,100"}]
[null,"Celkový součet",{"v":17758,"d":"17,758"}]

{"sheet":"21","index":21,"n_rows":14,"n_cols":10,"rows_kept":14}
["1. Klikněte na buňku B13, aby se aktivovala kontingenční tabulka s názvem Součet z Prodané jednotky.\n\n"]
["2. Stisknutím ALT+CA, N otevřete seznam Pole kontingenční tabulky. Fokus se automaticky nastaví do Hledat textového pole: Zadejte slova, která chcete hledat. Nic nezadávejte, místo toho stiskněte jednou klávesu Tab. Poznámka: Pokud se seznam polí nezobrazí, stiskněte znovu ALT+CA, N."]
["3. Pomocí kláves se šipkami a mezerníku rozbalte příklad do svislé kontingenční tabulky, ve které budou nalevo Sezóna a pod nimi odsazení Prodejce. Stisknutím klávesy ESC zavřete podokno Pole kontingenční tabulky. "]
["Pokud chcete pokračovat v tomto kurzu, stiskněte CTRL+PAGE DOWN. Pokud se chcete vrátit na předchozí list, stiskněte CTRL+PAGE UP."]
[{"$nulls":9},{"$f":"IF(AND(B$14=\"Jaro\",$C$17=2400),\"Výborně! Umístili jste druhé\",\" \")","v":" "}]
[{"$nulls":9},{"$f":"IF(AND(B$14=\"Jaro\",$C$17=2400),\"řádkové pole. Teď se posuňte\",\" \")","v":" "}]
[{"$nulls":9},{"$f":"IF(AND(B$14=\"Jaro\",$C$17=2400),\"dolů a klikněte na Další.\",\" \")","v":" "}]
[]
[]
[]
[]
[]
[null,"Součet z Prodané jednotky"]
[null,{"v":17758,"d":"17,758"}]

{"sheet":"22","index":22,"n_rows":14,"n_cols":10,"rows_kept":14}
["1. Klikněte na buňku B13, aby se aktivovala kontingenční tabulka s názvem Součet z Prodané jednotky."]
["2. Stisknutím ALT+CA, N otevřete seznam Pole kontingenční tabulky. Fokus se automaticky nastaví do Hledat textového pole: Zadejte slova, která chcete hledat. Nic nezadávejte, místo toho stiskněte jednou klávesu Tab. Poznámka: Pokud se seznam polí nezobrazí, stiskněte znovu ALT+CA, N."]
["3. Pomocí kláves se šipkami a mezerníku upravte příklad tak, aby se jednotlivé produkty zobrazovaly na samostatných řádcích a jednotlivé sezóny v samostatných sloupcích."]
["Pokud chcete pokračovat v tomto kurzu, stiskněte CTRL+PAGE DOWN. Pokud se chcete vrátit na předchozí list, stiskněte CTRL+PAGE UP.",{"$nulls":8},{"$f":"IF(AND($B$15=\"Banány\",$G$28=702),\"Výborně! Umístili jste řádkové\",\" \")","v":" "}]
[{"$nulls":9},{"$f":"IF(AND($B$15=\"Banány\",$G$28=702),\"pole nalevo a sloupcové pole, \",\" \")","v":" "}]
[{"$nulls":9},{"$f":"IF(AND($B$15=\"Banány\",$G$28=702),\"které přidalo čtyři nové\",\" \")","v":" "}]
[{"$nulls":9},{"$f":"IF(AND($B$15=\"Banány\",$G$28=702),\"sloupce. Posuňte se dolů\",\" \")","v":" "}]
[{"$nulls":9},{"$f":"IF(AND($B$15=\"Banány\",$G$28=702),\"a klikněte na Další...\",\" \")","v":" "}]
[]
[]
[]
[]
[null,"Součet z Prodané jednotky"]
[null,{"v":17758,"d":"17,758"}]

{"sheet":"23","index":23,"n_rows":16,"n_cols":18,"rows_kept":16}
["1. Klikněte na buňku B13, aby se aktivovala kontingenční tabulka s názvem Součet z Prodané jednotky.\n\n"]
["2. Stisknutím ALT+CA, N otevřete seznam Pole kontingenční tabulky. Fokus se automaticky nastaví do Hledat textového pole: Zadejte slova, která chcete hledat. Nic nezadávejte, místo toho stiskněte jednou klávesu Tab. Poznámka: Pokud se seznam polí nezobrazí, stiskněte znovu ALT+CA, N."]
["3. Pomocí kláves se šipkami a mezerníku upravte příklad tak, aby se Prodejce zobrazovali nalevo a pod nimi odsazené Sezóna."]
["Pokud chcete pokračovat v tomto kurzu, stiskněte CTRL+PAGE DOWN. Pokud se chcete vrátit na předchozí list, stiskněte CTRL+PAGE UP."]
[{"$nulls":8},{"$f":"IF(AND($B$14=\"David\",$C$14=5036),\"Výborně! Teď se data\",\" \")","v":" "}]
[{"$nulls":8},{"$f":"IF(AND($B$14=\"David\",$C$14=5036),\"snadněji čtou. Posuňte se\",\" \")","v":" "}]
[{"$nulls":8},{"$f":"IF(AND($B$14=\"David\",$C$14=5036),\"dolů a klikněte na Další...\",\" \")","v":" "}]
[]
[]
[]
[]
[]
[null,null,"Popisky sloupců"]
[null,null,"David",{"$nulls":3},"David Celkem","Jiří",{"$nulls":3},"Jiří Celkem","Jana",{"$nulls":3},"Jana Celkem","Celkový součet"]
[null,null,"Podzim","Jaro","Léto","Zima",null,"Podzim","Jaro","Léto","Zima",null,"Podzim","Jaro","Léto","Zima"]
[null,"Součet z Prodané jednotky",933,{"v":1320,"d":"1,320"},{"v":1133,"d":"1,133"},{"v":1650,"d":"1,650"},{"v":5036,"d":"5,036"},{"v":3220,"d":"3,220"},{"v":2400,"d":"2,400"},{"v":1260,"d":"1,260"},{"v":1420,"d":"1,420"},{"v":8300,"d":"8,300"},{"v":1272,"d":"1,272"},{"v":1040,"d":"1,040"},{"v":1080,"d":"1,080"},{"v":1030,"d":"1,030"},{"v":4422,"d":"4,422"},{"v":17758,"d":"17,758"}]

{"sheet":"24","index":24,"n_rows":14,"n_cols":8,"rows_kept":14}
["1. Klikněte na buňku B13, aby se aktivovala kontingenční tabulka s názvem Součet z Prodané jednotky."]
["2. Stisknutím ALT+CA, N otevřete seznam Pole kontingenční tabulky. Fokus se automaticky nastaví do Hledat textového pole: Zadejte slova, která chcete hledat. Nic nezadávejte, místo toho stiskněte jednou klávesu Tab. Poznámka: Pokud se seznam polí nezobrazí, stiskněte znovu ALT+CA, N."]
["3. Pomocí kláves se šipkami a mezerníku upravte příklad tak, aby každý prodejce měl vlastní sloupcové pole, sezóny byly nalevo a pod nimi byly odsazené produkty."]
["4. Vyberte buňku H9 a zvolte, kolik grapefruitů prodal David v zimě."]
["Pokud chcete pokračovat v tomto kurzu, stiskněte CTRL+PAGE DOWN. Pokud se chcete vrátit na předchozí list, stiskněte CTRL+PAGE UP."]
[]
[]
[{"$nulls":7},"Vyberte jednu možnost:"]
[]
[{"$nulls":7},{"$f":"IF($H$9=400,\"Máte pravdu!\",IF($H$9=530,\"Zkuste to znovu...\",IF($H$9=123,\"To není úplně správně...\",\" \")))","v":" "}]
[]
[]
[null,"Součet z Prodané jednotky"]
[null,{"v":17758,"d":"17,758"}]

{"sheet":"Další informace","index":25,"n_rows":7,"n_cols":1,"rows_kept":7}
["Dobrá práce. Nejsou kontingenční tabulky skvělé?"]
["Doporučujeme vám ale pokračovat. Můžete se naučit mnoho dalších věcí..."]
["Další informace o kontingenčních tabulkách\nV tomto užitečném článku o kontingenčních tabulkách se dozvíte, jaké další věci můžete udělat."]
["Aktualizace\nV tomto důležitém článku si můžete přečíst o tom, jak se kontingenční tabulky aktualizují. "]
["Komunita\nSpojte se s dalšími fanoušky Excelu. Můžou vám pomoct a vy zase můžete pomoct jim."]
[]
[" "]